{"text_format":"1","workbook":"xlsx","n_sheets":5,"sheets":["الخلاصة ","Names","lists","ورقة1","MS"],"not_rendered":{"charts":0,"images":0,"macros":1,"external_links":0,"defined_names":5,"comments":0,"pivot_tables":0},"unopened":[],"bounds":{"document_bytes":16777216,"sheet_cells":100000,"rows_first":2000,"rows_last":500,"rows_between":2000,"halvings":0,"cell_chars":16384,"cell_head_chars":4096},"cells_cut":0,"cells_raw":0,"read":"whole","date_system":"1900"}

{"sheet":"الخلاصة ","index":0,"n_rows":37,"n_cols":8,"rows_kept":37,"cut":false,"hidden":false,"merged":[[0,1,0,6],[2,0,3,0],[2,1,3,1],[2,2,3,2],[2,3,3,3],[2,4,3,4],[2,5,3,5],[2,6,3,6],[4,2,7,2],[4,6,7,6],[15,2,17,2],[8,2,14,2],[8,6,14,6],[15,6,17,6],[36,2,36,5],[18,2,20,2],[18,6,20,6],[21,2,27,2],[21,6,27,6],[31,2,33,2],[31,3,31,5],[33,3,33,5],[32,3,32,5],[28,1,28,2],[29,1,29,2],[30,1,30,2],[34,3,34,5],[35,3,35,5]]}
[]
[]
["الرقم","العدد","الصف ","الشعبة ","اسم  مربي الصف","عدد طلاب الشعبة","عدد الطلاب\n لكل مرحة "]
[1,1]
[1,1,"العاشر ","ا",null,{"$f":"Names!B3","v":0},{"$f":"SUM(F5:F8)","v":0}]
[2,2,null,"ب",null,{"$f":"Names!D3","v":0}]
[3,3,null,"ج",null,{"$f":"Names!F3","v":0}]
[4,4,null,"د",null,{"$f":"Names!H3","v":0}]
[5,1,"الحادي عشر\nالادبي","أ",null,{"$f":"Names!P3","v":0},{"$f":"SUM(F9:F15)","v":0}]
[6,2,null,"ب",null,{"$f":"Names!R3","v":0}]
[7,3,null,"ج",null,{"$f":"Names!T3","v":0}]
[8,4,null,"د",null,{"$f":"Names!V3","v":0}]
[9,5,null,"هـ",null,{"$f":"Names!X3","v":0}]
[10,6,null,"و",null,{"$f":"Names!Z3","v":0}]
[11,7,null,"ز",null,{"$f":"Names!AB3","v":0}]
[12,1,"الحادي عشر \nالعلمي","أ",null,{"$f":"Names!J3","v":0},{"$f":"SUM(F16:F18)","v":0}]
[13,2,null,"ب",null,{"$f":"Names!L3","v":0}]
[14,3,null,"ج",null,{"$f":"Names!N3","v":0}]
[15,1,"الثاني عشر\n العلمي","أ",null,{"$f":"Names!AD3","v":0},{"$f":"SUM(F19:F21)","v":0}]
[16,2,null,"ب",null,{"$f":"Names!AF3","v":0},null,{"$f":"G19+G22","v":0}]
[17,3,null,"ج",null,{"$f":"Names!AH3","v":0}]
[18,1,"الثاني عشر\n الادبي","أ",null,{"$f":"Names!AJ3","v":0},{"$f":"SUM(F22:F28)","v":0}]
[19,2,null,"ب",null,{"$f":"Names!AL3","v":0}]
[20,3,null,"ج",null,{"$f":"Names!AN3","v":0}]
[21,4,null,"د",null,{"$f":"Names!AP3","v":0}]
[22,5,null,"هـ",null,{"$f":"Names!AR3","v":0}]
[23,6,null,"و",null,{"$f":"Names!AT3","v":0}]
[24,7,null,"ز",null,{"$f":"Names!AV3","v":0}]
[null,"راسب 10",null,null,null,{"$f":"Names!AX3","v":0}]
[null,"راسب حادي عشر الادبي",null,null,null,{"$f":"Names!AZ3+Names!BD3","v":0}]
[null,"راسب حادي عشر العلمي",null,null,null,{"$f":"Names!BB3","v":0}]
[null,null,"الخلاصة ","عدد  طلاب المرحلة الاساسية ",null,null,{"$f":"G5","v":0}]
[null,null,null,"عدد  طلاب المرحلة الحادي عشر  ",null,null,{"$f":"G9+G16","v":0}]
[null,null,null,"عدد  طلاب المرحلة الثاني عشر  ",null,null,{"$f":"G19+G22","v":0}]
[null,null,null,"عدد الطلبة  المتسربون خلال العام السابق",null,null,{"$f":"SUM(F29:F31)","v":0}]
[null,null,null,"عدد الطلبة  للعام الحالي ",null,null,{"$f":"SUM(G5:G22)","v":0}]
[null,null,"المجموع النهائي لأعداد الطلبة  في المدرسة ",null,null,null,{"$f":"SUM(G35:G36)","v":0}]

{"sheet":"Names","index":1,"n_rows":3,"n_cols":56,"rows_kept":3,"cut":false,"hidden":false,"merged":[[0,44,2,44],[0,22,2,22],[0,0,2,0],[0,2,2,2],[0,4,2,4],[0,6,2,6],[0,8,2,8],[0,10,2,10],[0,12,2,12],[0,14,2,14],[0,16,2,16],[0,18,2,18],[0,20,2,20],[0,34,2,34],[0,36,2,36],[0,38,2,38],[0,40,2,40],[0,42,2,42],[0,24,2,24],[0,26,2,26],[0,28,2,28],[0,30,2,30],[0,32,2,32],[0,54,2,54],[0,48,2,48],[0,50,2,50],[0,52,2,52],[0,46,2,46]]}
["الرقم","العاشر أ","الرقم","العاشر ب","الرقم","العاشر ج","الرقم","العاشر د","الرقم","الحادي عشر العلمي أ","الرقم","الحادي عشر العلمي ب","الرقم","الحادي عشر العلمي ج","الرقم","الحادي عشر الادبي أ","الرقم","الحادي عشر الادبي ب","الرقم","الحادي عشر الادبي ج","الرقم","الحادي عشر الادبي د","الرقم","الحادي عشر الادبي هـ","الرقم","الحادي عشر الادبي و","الرقم","الحادي عشر الادبي ز","الرقم","الثاني عشر العلمي ا","الرقم","الثاني عشر العلمي ب","الرقم","الثاني عشر العلمي ج","الرقم","الثاني عشر الادبي أ","الرقم","الثاني عشر الادبي ب","الرقم","الثاني عشر الادبي ج","الرقم","الثاني عشر الادبي د ","الرقم","الثاني عشر الادبي هـ","الرقم","الثاني عشر الادبي و","الرقم","الثاني عشر الادبي ز","الرقم","الراسبون  عاشر ","الرقم","راسبون حادي عشر الادبي1","الرقم","الراسبون  حادي عشر العلمي  ","الرقم","راسبون حادي عشر الادبي2"]
[null,"عدد طلاب الشعبة ",null,"عدد طلاب الشعبة ",null,"عدد طلاب الشعبة ",null,"عدد طلاب الشعبة ",null,"عدد طلاب الشعبة ",null,"عدد طلاب الشعبة ",null,"عدد طلاب الشعبة ",null,"عدد طلاب الشعبة ",null,"عدد طلاب الشعبة ",null,"عدد طلاب الشعبة ",null,"عدد طلاب الشعبة ",null,"عدد طلاب الشعبة ",null,"عدد طلاب الشعبة ",null,"عدد طلاب الشعبة ",null,"عدد طلاب الشعبة ",null,"عدد طلاب الشعبة ",null,"عدد طلاب الشعبة ",null,"عدد طلاب الشعبة ",null,"عدد طلاب الشعبة ",null,"عدد طلاب الشعبة ",null,"عدد طلاب الشعبة ",null,"عدد طلاب الشعبة ",null,"عدد طلاب الشعبة ",null,"عدد طلاب الشعبة ",null,"عدد طلاب الشعبة ",null,"عدد طلاب الشعبة ",null,"عدد طلاب الشعبة ",null,"عدد طلاب الشعبة "]
[null,{"$f":"COUNTA(B4:B124)","v":0},null,{"$f":"COUNTA(D4:D130)","v":0},null,{"$f":"COUNTA(F4:F130)","v":0},null,{"$f":"COUNTA(H4:H130)","v":0},null,{"$f":"COUNTA(J4:J119)","v":0},null,{"$f":"COUNTA(L4:L120)","v":0},null,{"$f":"COUNTA(N4:N124)","v":0},null,{"$f":"COUNTA(P4:P127)","v":0},null,{"$f":"COUNTA(R4:R130)","v":0},null,{"$f":"COUNTA(T4:T67)","v":0},null,{"$f":"COUNTA(V4:V98)","v":0},null,{"$f":"COUNTA(X4:X66)","v":0},null,{"$f":"COUNTA(Z4:Z68)","v":0},null,{"$f":"COUNTA(AB4:AB68)","v":0},null,{"$f":"COUNTA(AD4:AD66)","v":0},null,{"$f":"COUNTA(AF4:AF66)","v":0},null,{"$f":"COUNTA(AH4:AH64)","v":0},null,{"$f":"COUNTA(AJ4:AJ168)","v":0},null,{"$f":"COUNTA(AL4:AL67)","v":0},null,{"$f":"COUNTA(AN4:AN68)","v":0},null,{"$f":"COUNTA(AP4:AP67)","v":0},null,{"$f":"COUNTA(AR4:AR68)","v":0},null,{"$f":"COUNTA(AT4:AT68)","v":0},null,{"$f":"COUNTA(AV4:AV68)","v":0},null,{"$f":"COUNTA(AX4:AX80)","v":0},null,{"$f":"COUNTA(AZ4:AZ271)","v":0},null,{"$f":"COUNTA(BB4:BB68)","v":0},null,{"$f":"COUNTA(BD4:BD271)","v":0}]

{"sheet":"lists","index":2,"n_rows":29,"n_cols":6,"rows_kept":29,"cut":false,"hidden":false,"merged":[[1,6,3,6],[0,0,0,5],[1,2,1,3],[1,0,1,1],[2,0,2,1],[2,2,2,3],[1,4,1,5],[2,4,2,5]]}
[]
[" اســــــــــم مربــــــي الصــــــف :",null,{"$f":"IFERROR(VLOOKUP(E3,class,2,FALSE),\"\")","v":""},null,{"$f":"\" الصف:  \"&G1","v":" الصف:  "}]
["عــــــدد طلاب الشعبـــــــــــــــة :",null,{"$f":"COUNTA(B5:B29,D5:D29,F5:F25)","v":0}]
["رقم","الاسم","رقم","الاسم","رقم","الاسم"]
[1,null,26,null,51]
[2,null,27,null,52]
[3,null,28,null,53]
[4,null,29,null,54]
[5,null,30,null,55]
[6,null,31,null,56]
[7,null,32,null,57]
[8,null,33,null,58]
[9,null,34,null,59]
[10,null,35,null,60]
[11,null,36,null,61]
[12,null,37,null,62]
[13,null,38,null,63]
[14,null,39,null,64]
[15,null,40,null,65]
[16,null,41,null,66]
[17,null,42,null,67]
[18,null,43,null,68]
[19,null,44,null,69]
[20,null,45,null,70]
[21,null,46,null,71]
[22,null,47,null,72]
[23,null,48,null,73]
[24,null,49,null,74]
[25,null,50,null,75]

{"sheet":"ورقة1","index":3,"n_rows":28,"n_cols":1,"rows_kept":28,"cut":false,"hidden":false,"merged":[]}
["العاشر أ"]
["العاشر ب"]
["العاشر ج"]
["العاشر د"]
["الحادي عشر العلمي أ"]
["الحادي عشر العلمي ب"]
["الحادي عشر العلمي ج"]
["الحادي عشر الادبي أ"]
["الحادي عشر الادبي ب"]
["الحادي عشر الادبي ج"]
["الحادي عشر الادبي د"]
["الحادي عشر الادبي هـ"]
["الحادي عشر الادبي و"]
["الحادي عشر الادبي ز"]
["الثاني عشر الادبي أ"]
["الثاني عشر الادبي ب"]
["الثاني عشر الادبي ج"]
["الثاني عشر الادبي د "]
["الثاني عشر الادبي ز"]
["الثاني عشر الادبي هـ"]
["الثاني عشر الادبي و"]
["الثاني عشر العلمي ا"]
["الثاني عشر العلمي ب"]
["الثاني عشر العلمي ج"]
["الراسبون  عاشر "]
["راسبون حادي عشر الادبي1"]
["الراسبون  حادي عشر العلمي  "]
["راسبون حادي عشر الادبي2"]

{"sheet":"MS","index":4,"n_rows":0,"n_cols":0,"rows_kept":0,"cut":false,"hidden":false,"merged":[]}